[Event "EUCC Open Blitz 2024"]
[Site "Miskolc"]
[Date "2024.07.13"]
[Round "4.15"]
[White "Budak, Rewi"]
[Black "Spanjer, Joris"]
[Result "1-0"]
[ECO "C56"]
[WhiteElo "2100"]
[BlackElo "1855"]
[PlyCount "161"]
[EventDate "2024.07.08"]
[EventType "team-tourn"]
[EventCountry "HUN"]
[TimeControl "1500+10"]

1. e4 {[%emt 0:22:17]} e5 {[%emt 0:22:17]} 2. Bc4 {[%emt 0:00:10]} Nf6 {[%emt 0:00:09]} 3. d4 {[%emt 0:00:08]} exd4 {[%emt 0:00:15]} 4. Nf3 {[%emt 0:00:09]} Nc6 {[%emt 0:00:16]} 5. Ng5 {[%emt 0:00:09]} d5 {[%emt 0:00:19]} 6. exd5 {[%emt 0:00:09]} Ne5 {[%emt 0:00:09]} 7. Qxd4 {[%emt 0:00:13]} Bd6 {[%emt 0:00:10]} 8. O-O {[%emt 0:00:25]} O-O {[%emt 0:00:12]} 9. Nc3 {[%emt 0:00:54]} Bf5 {[%emt 0:00:16]} 10. Bf4 {[%emt 0:00:24]} Nxc4 {[%emt 0:00:15]} 11. Qxc4 {[%emt 0:00:09]} Bxf4 {[%emt 0:00:19]} 12. Qxf4 {[%emt 0:00:09]} Bxc2 {[%emt 0:00:11]} 13. Rac1 {[%emt 0:00:09]} Bg6 {[%emt 0:00:11]} 14. Rfd1 {[%emt 0:00:12]} Qd7 {[%emt 0:00:26]} 15. Nf3 {[%emt 0:00:22]} Nh5 {[%emt 0:00:36]} 16. Qh4 {[%emt 0:00:18]} Rfe8 {[%emt 0:00:18]} 17. Qd4 {[%emt 0:00:32]} a6 {[%emt 0:00:25]} 18. Na4 {[%emt 0:00:20]} b6 {[%emt 0:00:29]} 19. Nc3 {[%emt 0:00:15]} Rad8 {[%emt 0:00:13]} 20. h3 {[%emt 0:00:10]} Nf6 {[%emt 0:00:14]} 21. Ne5 {[%emt 0:00:13]} Qd6 {[%emt 0:00:17]} 22. Nc6 {[%emt 0:00:13]} Rc8 {[%emt 0:00:16]} 23. Qc4 {[%emt 0:00:13]} b5 24. Qd4 {[%emt 0:00:10]} Be4 {[%emt 0:00:40]} 25. Rd2 {[%emt 0:00:21]} Bf5 {[%emt 0:00:17]} 26. Rcd1 {[%emt 0:00:11]} Bd7 {[%emt 0:00:09]} 27. Nb4 {[%emt 0:00:15]} a5 {[%emt 0:00:10]} 28. Nd3 b4 29. Nb1 {[%emt 0:00:36]} Re4 {[%emt 0:00:18]} 30. Qa7 {[%emt 0:00:13]} Rce8 {[%emt 0:00:17]} 31. g3 {[%emt 0:00:15]} Bb5 {[%emt 0:00:12]} 32. Nf4 {[%emt 0:00:10]} Re1+ {[%emt 0:00:09]} 33. Kh2 {[%emt 0:00:11]} Rxd1 {[%emt 0:00:09]} 34. Rxd1 {[%emt 0:00:09]} Rd8 {[%emt 0:00:11]} 35. Qd4 {[%emt 0:00:10]} Bd7 {[%emt 0:00:09]} 36. Nd2 {[%emt 0:00:09]} h6 {[%emt 0:00:09]} 37. Nc4 {[%emt 0:00:09]} Qe7 {[%emt 0:00:09]} 38. Nxa5 {[%emt 0:00:09]} Bb5 {[%emt 0:00:09]} 39. Nc6 {[%emt 0:00:12]} Bxc6 {[%emt 0:00:10]} 40. Qc4 {[%emt 0:00:12]} Bxd5 {[%emt 0:00:09]} 41. Nxd5 Nxd5 42. Rxd5 {[%emt 0:00:20]} Rxd5 {[%emt 0:00:18]} 43. Qxd5 {[%emt 0:00:09]} c5 {[%emt 0:00:10]} 44. b3 {[%emt 0:00:11]} Kh7 {[%emt 0:00:09]} 45. Kg2 {[%emt 0:00:09]} g6 {[%emt 0:00:11]} 46. Kf3 {[%emt 0:00:11]} Qf6+ {[%emt 0:00:09]} 47. Kg2 {[%emt 0:00:09]} Qe7 {[%emt 0:00:10]} 48. Qc4 {[%emt 0:00:10]} Kg7 {[%emt 0:00:10]} 49. Kf3 {[%emt 0:00:10]} Qf6+ {[%emt 0:00:09]} 50. Qf4 {[%emt 0:00:11]} Qc3+ {[%emt 0:00:09]} 51. Qe3 {[%emt 0:00:11]} Qf6+ {[%emt 0:00:10]} 52. Kg2 {[%emt 0:00:10]} Qc3 {[%emt 0:00:10]} 53. Kf3 {[%emt 0:00:10]} Qf6+ {[%emt 0:00:09]} 54. Ke2 {[%emt 0:00:10]} Qb2+ {[%emt 0:00:09]} 55. Kf1 {[%emt 0:00:10]} Qa1+ {[%emt 0:00:10]} 56. Kg2 {[%emt 0:00:09]} Qf6 {[%emt 0:00:10]} 57. Qxc5 {[%emt 0:00:10]} Qc3 {[%emt 0:00:09]} 58. Qe3 {[%emt 0:00:11]} Qc6+ {[%emt 0:00:10]} 59. Qf3 {[%emt 0:00:10]} Qc3 {[%emt 0:00:09]} 60. Qd5 {[%emt 0:00:10]} Qb2 {[%emt 0:00:11]} 61. h4 {[%emt 0:00:09]} Qc3 {[%emt 0:00:11]} 62. Qe4 {[%emt 0:00:10]} Qc5 {[%emt 0:00:11]} 63. Kf3 {[%emt 0:00:10]} Qc3+ {[%emt 0:00:09]} 64. Qe3 {[%emt 0:00:09]} Qf6+ {[%emt 0:00:09]} 65. Ke4 {[%emt 0:00:11]} Qe6+ {[%emt 0:00:10]} 66. Kd4 {[%emt 0:00:09]} Qb6+ {[%emt 0:00:13]} 67. Kc4 {[%emt 0:00:09]} Qa5 {[%emt 0:00:17]} 68. Qd4+ {[%emt 0:00:10]} Kg8 {[%emt 0:00:11]} 69. Qd5 {[%emt 0:00:09]} Qxa2 {[%emt 0:00:11]} 70. Qd8+ {[%emt 0:00:11]} Kh7 {[%emt 0:00:12]} 71. Qf6 {[%emt 0:00:11]} Qa7 {[%emt 0:00:10]} 72. Kxb4 Qb7+ 73. Kc3 {[%emt 0:00:20]} Qc7+ {[%emt 0:00:17]} 74. Kb2 {[%emt 0:00:09]} Kg8 {[%emt 0:00:09]} 75. Qd4 {[%emt 0:00:11]} Qb7 {[%emt 0:00:09]} 76. b4 {[%emt 0:00:09]} Qc7 {[%emt 0:00:09]} 77. Kb3 {[%emt 0:00:09]} g5 {[%emt 0:00:12]} 78. hxg5 {[%emt 0:00:10]} hxg5 {[%emt 0:00:08]} 79. Qc5 {[%emt 0:00:09]} Qd7 {[%emt 0:00:11]} 80. Qxg5+ {[%emt 0:00:09]} Kf8 {[%emt 0:00:09]} 81. Qc5+ {[%emt 0:00:10]} 1-0

[Event "EUCC Open Blitz 2024"]
[Site "Miskolc"]
[Date "2024.07.13"]
[Round "9.3"]
[White "Isik, Alparslan"]
[Black "Papp, Levente"]
[Result "1/2-1/2"]
[ECO "D38"]
[WhiteElo "2469"]
[BlackElo "2359"]
[PlyCount "139"]
[EventDate "2024.07.08"]
[EventType "team-tourn"]
[EventCountry "HUN"]
[TimeControl "1500+10"]

1. d4 {[%emt 0:22:18]} d5 {[%emt 0:22:19]} 2. c4 {[%emt 0:00:09]} e6 {[%emt 0:00:08]} 3. Nf3 {[%emt 0:00:09]} Nf6 {[%emt 0:00:10]} 4. Nc3 {[%emt 0:00:08]} Bb4 {[%emt 0:00:09]} 5. Qa4+ {[%emt 0:00:10]} Nc6 {[%emt 0:00:09]} 6. e3 {[%emt 0:00:09]} O-O {[%emt 0:00:10]} 7. Bd2 {[%emt 0:00:08]} a6 {[%emt 0:00:36]} 8. Qc2 {[%emt 0:00:12]} Bd6 {[%emt 0:00:36]} 9. Rd1 {[%emt 0:00:17]} dxc4 {[%emt 0:00:16]} 10. Bxc4 {[%emt 0:00:09]} b5 {[%emt 0:00:09]} 11. Bb3 {[%emt 0:00:32]} Bb7 {[%emt 0:00:15]} 12. O-O {[%emt 0:00:25]} Na5 {[%emt 0:00:41]} 13. e4 {[%emt 0:00:13]} b4 {[%emt 0:00:16]} 14. e5 bxc3 {[%emt 0:00:12]} 15. Qxc3 {[%emt 0:01:04]} Nxb3 {[%emt 0:00:13]} 16. Qxb3 {[%emt 0:00:09]} Bd5 {[%emt 0:00:51]} 17. Qd3 {[%emt 0:00:13]} Ne4 {[%emt 0:00:16]} 18. exd6 {[%emt 0:00:12]} cxd6 {[%emt 0:00:09]} 19. b3 {[%emt 0:00:12]} Qf6 {[%emt 0:00:12]} 20. Rfe1 {[%emt 0:00:17]} Qf5 {[%emt 0:00:13]} 21. Rc1 {[%emt 0:00:31]} Nxd2 {[%emt 0:00:11]} 22. Qxf5 {[%emt 0:00:10]} Nxf3+ {[%emt 0:00:10]} 23. Qxf3 {[%emt 0:00:09]} Bxf3 {[%emt 0:00:09]} 24. gxf3 {[%emt 0:00:09]} Rfc8 {[%emt 0:00:10]} 25. Kf1 {[%emt 0:00:09]} Kf8 {[%emt 0:00:12]} 26. Ke2 {[%emt 0:00:08]} Ke7 {[%emt 0:00:09]} 27. Kd2 {[%emt 0:00:20]} Kd7 {[%emt 0:00:10]} 28. Rxc8 Rxc8 29. Rc1 {[%emt 0:00:23]} Rb8 {[%emt 0:00:17]} 30. Rg1 {[%emt 0:00:20]} g6 {[%emt 0:00:10]} 31. Rg5 {[%emt 0:00:09]} d5 {[%emt 0:00:15]} 32. Rg1 {[%emt 0:00:12]} h5 {[%emt 0:00:17]} 33. Rc1 {[%emt 0:00:16]} Rb4 {[%emt 0:00:11]} 34. Rc5 {[%emt 0:00:12]} Rxd4+ {[%emt 0:00:09]} 35. Ke3 {[%emt 0:00:12]} Rb4 {[%emt 0:00:10]} 36. Ra5 {[%emt 0:00:12]} Rb6 {[%emt 0:00:09]} 37. Kf4 {[%emt 0:00:09]} f6 {[%emt 0:00:10]} 38. Ke3 {[%emt 0:00:14]} Kd6 {[%emt 0:00:10]} 39. f4 {[%emt 0:00:09]} e5 {[%emt 0:00:11]} 40. fxe5+ {[%emt 0:00:09]} fxe5 41. f4 Ke6 {[%emt 0:00:23]} 42. h4 {[%emt 0:00:20]} Kd6 {[%emt 0:00:10]} 43. fxe5+ {[%emt 0:00:15]} Kxe5 {[%emt 0:00:09]} 44. Kd3 {[%emt 0:00:12]} Rd6 {[%emt 0:00:18]} 45. b4 {[%emt 0:00:22]} Kf5 {[%emt 0:00:09]} 46. a4 {[%emt 0:00:08]} Kg4 {[%emt 0:00:09]} 47. b5 {[%emt 0:00:09]} axb5 48. axb5 Rb6 {[%emt 0:00:21]} 49. Kd4 {[%emt 0:00:17]} Kxh4 {[%emt 0:00:09]} 50. Kc5 {[%emt 0:00:17]} Rb8 {[%emt 0:00:09]} 51. Ra4+ {[%emt 0:00:12]} Kh3 {[%emt 0:00:10]} 52. Ra3+ {[%emt 0:00:09]} Kh4 53. Ra4+ Kg3 {[%emt 0:00:20]} 54. Ra3+ {[%emt 0:00:18]} Kg4 {[%emt 0:00:11]} 55. Ra4+ {[%emt 0:00:08]} Kf5 {[%emt 0:00:10]} 56. Rd4 {[%emt 0:00:11]} g5 {[%emt 0:00:10]} 57. Rxd5+ {[%emt 0:00:08]} Kg4 {[%emt 0:00:10]} 58. Kc6 {[%emt 0:00:17]} h4 59. Kc7 Rxb5 {[%emt 0:00:24]} 60. Rxb5 {[%emt 0:00:17]} h3 {[%emt 0:00:09]} 61. Kd6 {[%emt 0:00:15]} h2 62. Rb1 Kh3 {[%emt 0:00:21]} 63. Rb3+ {[%emt 0:00:21]} Kh4 {[%emt 0:00:11]} 64. Rb8 {[%emt 0:00:11]} g4 {[%emt 0:00:11]} 65. Ke5 {[%emt 0:00:09]} g3 {[%emt 0:00:11]} 66. Kf4 {[%emt 0:00:09]} Kh3 {[%emt 0:00:11]} 67. Rg8 {[%emt 0:00:11]} h1=Q 68. Rh8+ Kg2 {[%emt 0:00:20]} 69. Rxh1 {[%emt 0:00:18]} Kxh1 {[%emt 0:00:09]} 70. Kxg3 {[%emt 0:00:09]} 1/2-1/2

[Event "EUCC Open Blitz 2024"]
[Site "Miskolc"]
[Date "2024.07.13"]
[Round "9.4"]
[White "Fodor, Balazs"]
[Black "Kamer, Kayra"]
[Result "0-1"]
[ECO "E73"]
[WhiteElo "2247"]
[BlackElo "2316"]
[PlyCount "83"]
[EventDate "2024.07.08"]
[EventType "team-tourn"]
[EventCountry "HUN"]
[TimeControl "1500+10"]

1. d4 Nf6 {[%emt 0:22:17]} 2. c4 {[%emt 0:22:27]} g6 {[%emt 0:00:09]} 3. Nc3 {[%emt 0:00:09]} Bg7 {[%emt 0:00:09]} 4. e4 {[%emt 0:00:10]} d6 {[%emt 0:00:09]} 5. Be2 {[%emt 0:00:08]} O-O {[%emt 0:00:13]} 6. Be3 {[%emt 0:00:10]} Nc6 {[%emt 0:00:19]} 7. Nf3 {[%emt 0:00:23]} Bg4 {[%emt 0:00:16]} 8. O-O {[%emt 0:00:18]} e5 {[%emt 0:00:23]} 9. d5 {[%emt 0:00:21]} Ne7 {[%emt 0:00:09]} 10. Ne1 {[%emt 0:00:10]} Bxe2 {[%emt 0:00:09]} 11. Qxe2 {[%emt 0:00:09]} Nh5 {[%emt 0:00:12]} 12. g4 {[%emt 0:00:29]} Nf4 {[%emt 0:00:12]} 13. Bxf4 {[%emt 0:00:10]} exf4 {[%emt 0:00:09]} 14. Nd3 {[%emt 0:00:26]} g5 {[%emt 0:00:15]} 15. f3 {[%emt 0:00:33]} Ng6 {[%emt 0:00:11]} 16. Nd1 {[%emt 0:00:13]} Bd4+ {[%emt 0:00:14]} 17. Kh1 {[%emt 0:00:10]} Kg7 {[%emt 0:00:13]} 18. Rc1 {[%emt 0:00:12]} Rh8 {[%emt 0:00:19]} 19. N3f2 {[%emt 0:00:25]} h5 {[%emt 0:00:22]} 20. Qd2 {[%emt 0:00:22]} Be5 {[%emt 0:00:30]} 21. gxh5 {[%emt 0:00:15]} Rxh5 {[%emt 0:00:10]} 22. Ng4 {[%emt 0:00:08]} Qe7 {[%emt 0:00:18]} 23. Ndf2 {[%emt 0:00:10]} Rah8 {[%emt 0:00:10]} 24. Nd3 {[%emt 0:00:13]} b6 {[%emt 0:00:33]} 25. Rc2 {[%emt 0:00:09]} Rh3 {[%emt 0:00:12]} 26. Qe2 {[%emt 0:00:24]} Qd7 {[%emt 0:00:11]} 27. b3 {[%emt 0:00:13]} Bd4 {[%emt 0:00:18]} 28. Ndf2 {[%emt 0:00:12]} R3h4 {[%emt 0:00:15]} 29. Qd3 {[%emt 0:00:13]} Be5 {[%emt 0:00:09]} 30. Qe2 {[%emt 0:00:10]} a5 {[%emt 0:00:17]} 31. a4 {[%emt 0:00:09]} Kf8 {[%emt 0:00:22]} 32. Rg1 {[%emt 0:00:10]} Ke7 {[%emt 0:00:13]} 33. Nd3 {[%emt 0:00:15]} f6 {[%emt 0:00:15]} 34. Qf1 {[%emt 0:00:15]} Kd8 {[%emt 0:00:12]} 35. Qe2 {[%emt 0:00:16]} Kc8 {[%emt 0:00:10]} 36. Qf1 {[%emt 0:00:09]} Rh3 {[%emt 0:00:09]} 37. Qe2 {[%emt 0:00:17]} Nh4 {[%emt 0:00:16]} 38. Rf1 {[%emt 0:00:10]} Nxf3 {[%emt 0:00:14]} 39. Rxf3 {[%emt 0:00:16]} Qxg4 {[%emt 0:00:10]} 40. Rf2 f3 {[%emt 0:00:14]} 41. Qd2 {[%emt 0:00:28]} Bg3 {[%emt 0:00:15]} 42. Qd1 0-1

[Event "EUCC Open Blitz 2024"]
[Site "Miskolc"]
[Date "2024.07.13"]
[Round "9.5"]
[White "Safar, Sandro"]
[Black "Manafov, Vugar"]
[Result "1-0"]
[ECO "B23"]
[WhiteElo "2220"]
[BlackElo "2430"]
[PlyCount "107"]
[EventDate "2024.07.08"]
[EventType "team-tourn"]
[EventCountry "HUN"]
[TimeControl "1500+10"]

1. e4 c5 {[%emt 0:22:16]} 2. Nc3 {[%emt 0:22:26]} e6 {[%emt 0:00:08]} 3. f4 {[%emt 0:00:11]} d5 {[%emt 0:00:09]} 4. Nf3 Nf6 5. e5 {[%emt 0:00:24]} Nfd7 {[%emt 0:00:17]} 6. d3 {[%emt 0:00:13]} Nc6 {[%emt 0:00:09]} 7. g3 {[%emt 0:00:10]} a6 {[%emt 0:00:08]} 8. Bg2 {[%emt 0:00:10]} g6 {[%emt 0:00:10]} 9. O-O {[%emt 0:00:12]} b5 {[%emt 0:00:09]} 10. Ne2 {[%emt 0:00:11]} Be7 {[%emt 0:00:09]} 11. c3 {[%emt 0:00:09]} Bb7 {[%emt 0:00:09]} 12. d4 {[%emt 0:00:10]} Qb6 {[%emt 0:00:09]} 13. Kh1 {[%emt 0:00:11]} a5 {[%emt 0:00:09]} 14. a3 {[%emt 0:00:13]} b4 {[%emt 0:00:16]} 15. axb4 {[%emt 0:00:11]} axb4 {[%emt 0:00:10]} 16. Rxa8+ {[%emt 0:00:10]} Bxa8 {[%emt 0:00:09]} 17. g4 {[%emt 0:00:17]} h5 {[%emt 0:00:13]} 18. f5 {[%emt 0:00:44]} Nf8 {[%emt 0:01:32]} 19. f6 {[%emt 0:00:47]} Bd8 {[%emt 0:00:09]} 20. g5 {[%emt 0:00:16]} c4 {[%emt 0:00:30]} 21. Qa4 {[%emt 0:00:14]} Bb7 {[%emt 0:00:11]} 22. cxb4 {[%emt 0:00:17]} Qxb4 {[%emt 0:00:11]} 23. Qa1 {[%emt 0:00:30]} Bb6 {[%emt 0:00:23]} 24. Bd2 {[%emt 0:00:11]} Qb3 {[%emt 0:00:18]} 25. Bc3 {[%emt 0:00:15]} Nh7 {[%emt 0:00:24]} 26. Nf4 {[%emt 0:00:12]} Kd7 {[%emt 0:00:11]} 27. Bh3 {[%emt 0:00:14]} Kc7 {[%emt 0:00:10]} 28. Bxe6 fxe6 29. Nxe6+ {[%emt 0:00:28]} Kb8 {[%emt 0:00:21]} 30. Nf4 {[%emt 0:00:13]} Nf8 {[%emt 0:00:16]} 31. e6 {[%emt 0:00:10]} Rh7 {[%emt 0:00:28]} 32. Qe1 {[%emt 0:00:16]} Bd8 {[%emt 0:00:13]} 33. Ne5 {[%emt 0:00:14]} Nxe5 {[%emt 0:00:09]} 34. Qxe5+ {[%emt 0:00:11]} Bc7 {[%emt 0:00:10]} 35. Qe2 {[%emt 0:00:15]} Nxe6 {[%emt 0:00:26]} 36. Nxe6 {[%emt 0:00:11]} Bc8 {[%emt 0:00:15]} 37. f7 {[%emt 0:00:11]} Bd6 {[%emt 0:00:09]} 38. f8=Q {[%emt 0:00:12]} Bxf8 {[%emt 0:00:09]} 39. Nxf8 {[%emt 0:00:11]} Bf5 {[%emt 0:00:11]} 40. Rxf5 {[%emt 0:00:15]} Ra7 {[%emt 0:00:09]} 41. Rf1 {[%emt 0:00:10]} Qa4 {[%emt 0:00:09]} 42. Ne6 {[%emt 0:00:11]} Re7 {[%emt 0:00:12]} 43. Qe5+ {[%emt 0:00:09]} Ka7 {[%emt 0:00:08]} 44. Qd6 {[%emt 0:00:10]} Rb7 {[%emt 0:00:09]} 45. Nd8 {[%emt 0:00:11]} Rb6 {[%emt 0:00:11]} 46. Rf7+ Ka6 47. Qf4 {[%emt 0:00:21]} Qd1+ {[%emt 0:00:18]} 48. Qf1 {[%emt 0:00:08]} Qa4 {[%emt 0:00:09]} 49. Rf6 {[%emt 0:00:11]} Qc2 {[%emt 0:00:10]} 50. Rxb6+ {[%emt 0:00:10]} Kxb6 {[%emt 0:00:09]} 51. Kg1 {[%emt 0:00:11]} h4 {[%emt 0:00:09]} 52. Qf6+ {[%emt 0:00:10]} Kc7 {[%emt 0:00:09]} 53. Ba5+ {[%emt 0:00:08]} Kd7 54. Qe6# {[%emt 0:00:10]} 1-0

[Event "EUCC Open Blitz 2024"]
[Site "Miskolc"]
[Date "2024.07.13"]
[Round "9.6"]
[White "Atakishiyev, Elmar"]
[Black "Tomulic, Teo"]
[Result "1-0"]
[ECO "D11"]
[WhiteElo "2356"]
[BlackElo "2346"]
[PlyCount "79"]
[EventDate "2024.07.08"]
[EventType "team-tourn"]
[EventCountry "HUN"]
[TimeControl "1500+10"]

1. d4 {[%emt 0:22:16]} Nf6 {[%emt 0:22:17]} 2. c4 {[%emt 0:00:09]} c6 {[%emt 0:00:11]} 3. Nf3 {[%emt 0:00:09]} d5 {[%emt 0:00:09]} 4. e3 {[%emt 0:00:09]} g6 {[%emt 0:00:25]} 5. Nc3 {[%emt 0:00:09]} Bg7 {[%emt 0:00:08]} 6. h3 {[%emt 0:00:09]} O-O {[%emt 0:00:10]} 7. cxd5 {[%emt 0:00:10]} cxd5 {[%emt 0:00:11]} 8. Bd3 {[%emt 0:00:13]} Nc6 {[%emt 0:00:11]} 9. O-O {[%emt 0:00:09]} Bf5 {[%emt 0:00:21]} 10. Bxf5 {[%emt 0:00:19]} gxf5 {[%emt 0:00:09]} 11. Bd2 {[%emt 0:00:10]} Ne4 {[%emt 0:00:12]} 12. b3 {[%emt 0:00:09]} Rc8 {[%emt 0:00:10]} 13. Rc1 {[%emt 0:00:12]} e6 {[%emt 0:00:09]} 14. Na4 {[%emt 0:00:11]} Kh8 {[%emt 0:00:20]} 15. Be1 {[%emt 0:00:27]} Rg8 {[%emt 0:00:13]} 16. Nd2 {[%emt 0:00:29]} Qg5 {[%emt 0:00:26]} 17. f4 {[%emt 0:00:10]} Qg6 {[%emt 0:00:14]} 18. Nxe4 {[%emt 0:00:19]} fxe4 {[%emt 0:00:23]} 19. Rf2 {[%emt 0:00:42]} Bf6 {[%emt 0:00:47]} 20. g4 {[%emt 0:00:16]} Be7 {[%emt 0:00:39]} 21. Nc5 {[%emt 0:00:50]} b6 {[%emt 0:00:17]} 22. Nd7 {[%emt 0:00:09]} Nb4 {[%emt 0:00:38]} 23. Ne5 {[%emt 0:00:15]} Qg7 {[%emt 0:00:10]} 24. Rxc8 {[%emt 0:00:27]} Rxc8 {[%emt 0:00:10]} 25. Bxb4 {[%emt 0:00:09]} Bxb4 {[%emt 0:00:08]} 26. Rc2 {[%emt 0:00:09]} Rxc2 {[%emt 0:00:18]} 27. Qxc2 {[%emt 0:00:08]} h5 {[%emt 0:00:09]} 28. Qc8+ {[%emt 0:00:30]} Kh7 {[%emt 0:00:09]} 29. Qe8 {[%emt 0:00:17]} hxg4 {[%emt 0:00:12]} 30. hxg4 {[%emt 0:00:09]} Bd2 {[%emt 0:00:11]} 31. Kf2 {[%emt 0:00:09]} f6 {[%emt 0:00:09]} 32. Qh5+ {[%emt 0:00:11]} Kg8 {[%emt 0:00:09]} 33. Nc6 {[%emt 0:00:16]} Qc7 {[%emt 0:00:11]} 34. Qe8+ {[%emt 0:00:10]} Kg7 35. Qxe6 {[%emt 0:00:10]} a5 {[%emt 0:00:19]} 36. Ne7 {[%emt 0:00:09]} Bxe3+ {[%emt 0:00:11]} 37. Kg2 {[%emt 0:00:12]} Qc2+ {[%emt 0:00:09]} 38. Kh3 {[%emt 0:00:08]} Qf2 {[%emt 0:00:12]} 39. Qg8+ {[%emt 0:00:09]} Kh6 {[%emt 0:00:10]} 40. Nf5# {[%emt 0:00:09]} 1-0

[Event "EUCC Open Blitz 2024"]
[Site "Miskolc"]
[Date "2024.07.13"]
[Round "9.7"]
[White "Kruckenhauser, Arthur"]
[Black "Farkas, Richard"]
[Result "1/2-1/2"]
[ECO "C10"]
[WhiteElo "2340"]
[BlackElo "2233"]
[PlyCount "51"]
[EventDate "2024.07.08"]
[EventType "team-tourn"]
[EventCountry "HUN"]
[TimeControl "1500+10"]

1. e4 {[%emt 0:22:17]} e6 {[%emt 0:22:17]} 2. d4 {[%emt 0:00:09]} d5 {[%emt 0:00:07]} 3. Nd2 {[%emt 0:00:06]} dxe4 4. Nxe4 {[%emt 0:00:09]} Nd7 {[%emt 0:00:19]} 5. g3 {[%emt 0:00:10]} Ngf6 {[%emt 0:00:25]} 6. Nxf6+ {[%emt 0:00:10]} Qxf6 {[%emt 0:00:16]} 7. Bg2 {[%emt 0:00:09]} Bd6 {[%emt 0:00:19]} 8. Nf3 {[%emt 0:00:09]} O-O {[%emt 0:00:19]} 9. O-O {[%emt 0:00:10]} e5 {[%emt 0:00:10]} 10. dxe5 {[%emt 0:00:15]} Nxe5 {[%emt 0:00:09]} 11. Nxe5 {[%emt 0:00:09]} Bxe5 {[%emt 0:00:11]} 12. c3 {[%emt 0:00:12]} c6 {[%emt 0:00:13]} 13. Qf3 {[%emt 0:00:13]} Qxf3 {[%emt 0:00:18]} 14. Bxf3 {[%emt 0:00:09]} Be6 {[%emt 0:00:12]} 15. Be3 {[%emt 0:00:21]} Rfd8 {[%emt 0:00:16]} 16. a3 {[%emt 0:00:23]} Bb3 {[%emt 0:00:12]} 17. Rfe1 {[%emt 0:00:11]} Bf6 {[%emt 0:00:12]} 18. a4 {[%emt 0:00:46]} g6 {[%emt 0:00:42]} 19. a5 {[%emt 0:00:12]} a6 {[%emt 0:00:09]} 20. Bb6 {[%emt 0:00:36]} Rd2 {[%emt 0:00:18]} 21. Re2 {[%emt 0:00:09]} Rxe2 22. Bxe2 {[%emt 0:00:08]} Re8 {[%emt 0:00:34]} 23. Bg4 {[%emt 0:00:17]} Be6 {[%emt 0:00:40]} 24. Re1 {[%emt 0:00:52]} Kf8 {[%emt 0:00:09]} 25. Bf3 {[%emt 0:00:19]} Be7 {[%emt 0:00:14]} 26. Kg2 {[%emt 0:00:13]} 1/2-1/2

[Event "EUCC Open Blitz 2024"]
[Site "Miskolc"]
[Date "2024.07.13"]
[Round "9.8"]
[White "Bartok, David Dominik"]
[Black "Leisch, Lukas"]
[Result "0-1"]
[ECO "C02"]
[WhiteElo "1958"]
[BlackElo "2394"]
[PlyCount "103"]
[EventDate "2024.07.08"]
[EventType "team-tourn"]
[EventCountry "HUN"]
[TimeControl "1500+10"]

1. e4 {[%emt 0:22:18]} e6 {[%emt 0:22:17]} 2. d4 {[%emt 0:00:09]} d5 {[%emt 0:00:08]} 3. e5 {[%emt 0:00:09]} c5 {[%emt 0:00:09]} 4. c3 {[%emt 0:00:09]} Nc6 {[%emt 0:00:09]} 5. Nf3 {[%emt 0:00:08]} Qb6 {[%emt 0:00:09]} 6. Be2 {[%emt 0:00:11]} cxd4 {[%emt 0:00:10]} 7. cxd4 {[%emt 0:00:09]} Nh6 {[%emt 0:00:09]} 8. Nc3 {[%emt 0:00:22]} Nf5 {[%emt 0:00:09]} 9. Na4 {[%emt 0:00:09]} Qa5+ {[%emt 0:00:09]} 10. Bd2 {[%emt 0:00:09]} Bb4 {[%emt 0:00:10]} 11. Bc3 {[%emt 0:00:10]} Bxc3+ {[%emt 0:00:13]} 12. bxc3 {[%emt 0:00:14]} Bd7 {[%emt 0:00:29]} 13. g4 {[%emt 0:00:13]} Nfxd4 {[%emt 0:00:23]} 14. Nxd4 {[%emt 0:00:13]} Nxd4 {[%emt 0:00:09]} 15. Qxd4 {[%emt 0:00:13]} Qxa4 {[%emt 0:00:12]} 16. Qb4 {[%emt 0:00:46]} Qxb4 {[%emt 0:00:16]} 17. cxb4 {[%emt 0:00:09]} Rc8 {[%emt 0:00:10]} 18. Bd3 {[%emt 0:00:18]} Ke7 {[%emt 0:00:10]} 19. Kd2 {[%emt 0:00:10]} h6 {[%emt 0:00:15]} 20. Rac1 {[%emt 0:00:12]} Rxc1 {[%emt 0:00:11]} 21. Rxc1 {[%emt 0:00:09]} Rc8 {[%emt 0:00:09]} 22. Rxc8 {[%emt 0:00:56]} Bxc8 {[%emt 0:00:09]} 23. Kc3 {[%emt 0:00:11]} Bd7 {[%emt 0:00:21]} 24. Kd4 {[%emt 0:00:18]} b6 {[%emt 0:00:16]} 25. f4 {[%emt 0:00:20]} f6 {[%emt 0:00:17]} 26. h4 {[%emt 0:00:12]} Ba4 {[%emt 0:00:16]} 27. g5 {[%emt 0:00:21]} fxg5 {[%emt 0:00:20]} 28. fxg5 {[%emt 0:00:17]} hxg5 {[%emt 0:00:25]} 29. hxg5 {[%emt 0:00:10]} Be8 {[%emt 0:00:13]} 30. b5 {[%emt 0:00:15]} Bh5 {[%emt 0:00:10]} 31. a4 {[%emt 0:00:10]} Kf7 {[%emt 0:00:13]} 32. Kc3 {[%emt 0:00:18]} Bg6 {[%emt 0:00:10]} 33. Be2 {[%emt 0:00:10]} Kg8 {[%emt 0:00:20]} 34. Bg4 {[%emt 0:00:11]} Bf7 {[%emt 0:00:11]} 35. g6 {[%emt 0:00:10]} Bxg6 {[%emt 0:00:11]} 36. Bxe6+ {[%emt 0:00:09]} Bf7 {[%emt 0:00:17]} 37. Bd7 {[%emt 0:00:15]} Kf8 {[%emt 0:00:10]} 38. e6 {[%emt 0:00:09]} Bh5 {[%emt 0:00:12]} 39. Kd4 {[%emt 0:00:10]} Bf3 {[%emt 0:00:16]} 40. Ke5 {[%emt 0:00:18]} Ke7 {[%emt 0:00:09]} 41. Bc6 {[%emt 0:00:10]} Be4 {[%emt 0:00:32]} 42. Bb7 {[%emt 0:00:09]} Bc2 {[%emt 0:00:16]} 43. Bxd5 {[%emt 0:00:10]} Bxa4 {[%emt 0:00:09]} 44. Bc4 {[%emt 0:00:10]} Bd1 {[%emt 0:00:16]} 45. Kf5 {[%emt 0:00:10]} Bc2+ {[%emt 0:00:10]} 46. Ke5 {[%emt 0:00:10]} Bb1 {[%emt 0:00:11]} 47. Bd5 {[%emt 0:00:12]} Bd3 {[%emt 0:00:09]} 48. Bc6 {[%emt 0:00:09]} a6 {[%emt 0:00:12]} 49. bxa6 {[%emt 0:00:13]} Bxa6 {[%emt 0:00:09]} 50. Bd5 {[%emt 0:00:09]} b5 {[%emt 0:00:17]} 51. Bb3 {[%emt 0:00:12]} Bc8 {[%emt 0:00:10]} 52. Kd4 0-1